fUSD/lending_fUSD_20250720
["ID","MTS","AMOUNT","RATE_DAILY","PERIOD"]
[373407600,1752989440567,-528.82,0.00019178,2]
[373407602,1752989440576,-480.0,0.00019178,2]
[373407604,1752989440586,-480.0,0.00019178,2]
[373407606,1752989440596,-362.84676531,0.00019178,2]
[373407608,1752989440606,-548.53627813,0.00019178,2]
[373407610,1752989440615,-480.0,0.00019178,2]
[373407637,1752989440851,-480.0,0.00019178,2]
[373407639,1752989440862,-480.0,0.00019178,2]
[373407641,1752989440872,-480.0,0.00019178,2]
[373407643,1752989440882,-480.0,0.00019178,2]
[373407645,1752989440891,-480.0,0.00019178,2]
[373407647,1752989440901,-480.0,0.00019178,2]
[373407649,1752989440910,-480.0,0.00019178,2]
[373407651,1752989440920,-480.0,0.00019178,2]
[373407653,1752989440929,-480.0,0.00019178,2]
[373407655,1752989440938,-781.89,0.00019178,2]
[373407657,1752989440948,-627.64986787,0.00019178,2]
[373407659,1752989440957,-480.0,0.00019178,2]
[373407661,1752989440966,-582.98,0.00019178,2]
[373407663,1752989440976,-480.0,0.00019178,2]
[373407665,1752989440985,-680.69,0.00019178,2]
[373407667,1752989440994,-544.19135175,0.00019178,2]
[373407669,1752989441003,-480.0,0.00019178,2]
[373407671,1752989441013,-521.08642162,0.00019178,2]
[373407673,1752989441025,-480.0,0.00019178,2]
[373407675,1752989441034,-565.07,0.00019178,2]
[373407677,1752989441043,-693.28,0.00019178,2]
[373407680,1752989441053,-480.0,0.00019178,2]
[373407681,1752989441062,-480.0,0.00019178,2]
[373407683,1752989441071,-480.0,0.00019178,2]
[373407685,1752989441080,-480.0,0.00019178,2]
[373407687,1752989441089,-480.0,0.00019178,2]
[373407689,1752989441098,-480.0,0.00019178,2]
[373407691,1752989441108,-482.17,0.00019178,2]
[373407693,1752989441117,-480.0,0.00019178,2]
[373407695,1752989441126,-480.0,0.00019178,2]
[373407697,1752989441136,-480.0,0.00019178,2]
[373407699,1752989441145,-480.0,0.00019178,2]
[373407702,1752989441155,-480.0,0.00019178,2]
[373407704,1752989441164,-480.0,0.00019178,2]
[373407705,1752989441173,-509.71205805,0.00019178,2]
[373407707,1752989441182,-480.0,0.00019178,2]
[373407709,1752989441191,-480.0,0.00019178,2]
[373407711,1752989441201,-480.0,0.00019178,2]
[373407713,1752989441210,-543.32834835,0.00019178,2]
[373407715,1752989441219,-480.0,0.00019178,2]
[373407718,1752989441228,-480.0,0.00019178,2]
[373407719,1752989441237,-480.0,0.00019178,2]
[373407721,1752989441246,-490.26924715,0.00019178,2]
[373407723,1752989441256,-1320.33,0.00019178,2]
[373407725,1752989441267,-480.0,0.00019178,2]
[373407727,1752989441276,-294.05498403,0.00019178,2]
[373407729,1752989441285,-530.73,0.00019178,2]
[373407731,1752989441295,-480.0,0.00019178,2]
[373407734,1752989441304,-480.0,0.00019178,2]
[373407736,1752989441314,-480.0,0.00019178,2]
[373407738,1752989441323,-480.0,0.00019178,2]
[373407739,1752989441332,-480.0,0.00019178,2]
[373407742,1752989441343,-480.0,0.00019178,2]
[373407744,1752989441353,-480.0,0.00019178,2]
[373407746,1752989441362,-480.0,0.00019178,2]
[373407748,1752989441371,-480.0,0.00019178,2]
[373407750,1752989441381,-480.0,0.00019178,2]
[373407752,1752989441390,-480.0,0.00019178,2]
[373407753,1752989441399,-480.0,0.00019178,2]
[373407756,1752989441410,-502.43,0.00019178,2]
[373407758,1752989441419,-533.45,0.00019178,2]
[373407759,1752989441429,-552.93530247,0.00019178,2]
[373407761,1752989441438,-481.99511507,0.00019178,2]
[373407763,1752989441447,-2437.85,0.00019178,2]
[373407766,1752989441457,-2705.91,0.00019178,2]
[373407767,1752989441467,-480.0,0.00019178,2]
[373407770,1752989441476,-469.6730975,0.00019178,2]
[373407772,1752989441486,-480.0,0.00019178,2]
[373407774,1752989441495,-480.0,0.00019178,2]
[373407776,1752989441505,-480.0,0.00019178,2]
[373407777,1752989441514,-165.985952,0.00019178,2]
[373407780,1752989441525,-480.0,0.00019178,2]
[373407782,1752989441534,-480.0,0.00019178,2]
[373407784,1752989441544,-480.0,0.00019178,2]
[373407785,1752989441553,-480.0,0.00019178,2]
[373407787,1752989441563,-845.02,0.00019178,2]
[373407790,1752989441572,-487.14,0.00019178,2]
[373407792,1752989441581,-557.8,0.00019178,2]
[373407793,1752989441590,-862.06,0.00019178,2]
[373407795,1752989441599,-480.0,0.00019178,2]
[373407797,1752989441609,-480.0,0.00019178,2]
[373407799,1752989441618,-480.0,0.00019178,2]
[373407802,1752989441629,-536.7,0.00019178,2]
[373407803,1752989441638,-227.91489466,0.00019178,2]
[373407805,1752989441647,-567.96,0.00019178,2]
[373407808,1752989441657,-480.0,0.00019178,2]
[373407809,1752989441666,-487.95,0.00019178,2]
[373407812,1752989441675,-480.0,0.00019178,2]
[373407814,1752989441686,-480.0,0.00019178,2]
[373407816,1752989441696,-1882.7,0.00019178,2]
[373407818,1752989441705,-480.0,0.00019178,2]
[373407820,1752989441716,-920.6,0.00019178,2]
[373407821,1752989441727,-480.0,0.00019178,2]
[373407823,1752989441736,-665.71,0.00019178,2]
[373407825,1752989441746,-1170.57,0.00019178,2]
[373407827,1752989441755,-991.0,0.00019178,2]
[373407829,1752989441764,-1122.48,0.00019178,2]
[373407831,1752989441773,-546.09,0.00019178,2]
[373407834,1752989441782,-507.4,0.00019178,2]
[373407835,1752989441792,-480.0,0.00019178,2]
[373407838,1752989441801,-1064.41,0.00019178,2]
[373407840,1752989441811,-480.0,0.00019178,2]
[373407842,1752989441820,-620.05,0.00019178,2]
[373407843,1752989441829,-480.0,0.00019178,2]
[373407845,1752989441839,-1197.86,0.00019178,2]
[373407847,1752989441848,-591.75,0.00019178,2]
[373407849,1752989441857,-1679.81,0.00019178,2]
[373407851,1752989441866,-645.32,0.00019178,2]
[373407853,1752989441876,-480.0,0.00019178,2]
[373407855,1752989441885,-502.34846115,0.00019178,2]
[373407856,1752989441894,-1005.5,0.00019178,2]
[373407857,1752989441904,-480.0,0.00019178,2]
[373407858,1752989441913,-480.0,0.00019178,2]
[373407859,1752989441922,-1103.07,0.00019178,2]
[373407860,1752989441931,-947.41,0.00019178,2]
[373407861,1752989441940,-480.0,0.00019178,2]
[373407862,1752989441949,-480.0,0.00019178,2]
[373407863,1752989441961,-480.0,0.00019178,2]
[373407864,1752989441978,-902.23,0.00019178,2]
[373407865,1752989441987,-823.73,0.00019178,2]
[373407867,1752989441997,-495.66,0.00019178,2]
[373407869,1752989442006,-480.0,0.00019178,2]
[373407871,1752989442020,-830.46,0.00019178,2]
[373407873,1752989442029,-480.0,0.00019178,2]
[373407875,1752989442038,-823.26,0.00019178,2]
[373407877,1752989442047,-480.0,0.00019178,2]
[373407879,1752989442058,-480.0,0.00019178,2]
[373407881,1752989442067,-480.0,0.00019178,2]
[373407883,1752989442076,-480.0,0.00019178,2]
[373407885,1752989442085,-480.0,0.00019178,2]
[373407887,1752989442096,-2236.11,0.00019178,2]
[373407889,1752989442106,-480.0,0.00019178,2]
[373407891,1752989442115,-822.96,0.00019178,2]
[373407893,1752989442126,-481.9,0.00019178,2]
[373407895,1752989442134,-468.12118596,0.00019178,2]
[373407897,1752989442143,-648.25,0.00019178,2]
[373407899,1752989442152,-480.0,0.00019178,2]
[373407901,1752989442161,-480.0,0.00019178,2]
[373407903,1752989442171,-705.02,0.00019178,2]
[373407905,1752989442180,-480.0,0.00019178,2]
[373407907,1752989442189,-1258.95,0.00019178,2]
[373407909,1752989442198,-480.0,0.00019178,2]
[373407911,1752989442207,-1019.07,0.00019178,2]
[373407912,1752989442216,-492.36,0.00019178,2]
[373407915,1752989442225,-480.0,0.00019178,2]
[373407917,1752989442235,-580.94,0.00019178,2]
[373407918,1752989442244,-480.0,0.00019178,2]
[373407920,1752989442253,-480.0,0.00019178,2]
[373407922,1752989442262,-480.0,0.00019178,2]
[373407924,1752989442271,-480.0,0.00019178,2]
[373407926,1752989442280,-551.42,0.00019178,2]
[373407928,1752989442289,-480.0,0.00019178,2]
[373407930,1752989442298,-480.0,0.00019178,2]
[373407932,1752989442307,-480.0,0.00019178,2]
[373407934,1752989442316,-2183.79,0.00019178,2]
[373407936,1752989442324,-480.0,0.00019178,2]
[373407938,1752989442333,-480.0,0.00019178,2]
[373407940,1752989442342,-721.71,0.00019178,2]
[373407942,1752989442352,-1467.13,0.00019178,2]
[373407944,1752989442361,-978.15,0.00019178,2]
[373407946,1752989442370,-3940.47,0.00019178,2]
[373407948,1752989442381,-735.45,0.00019178,2]
[373407950,1752989442390,-530.8128922,0.00019178,2]
[373407952,1752989442399,-480.0,0.00019178,2]
[373407954,1752989442408,-480.0,0.00019178,2]
[373407956,1752989442417,-513.27,0.00019178,2]
[373407958,1752989442426,-480.0,0.00019178,2]
[373407960,1752989442435,-1837.11,0.00019178,2]
[373407962,1752989442444,-995.79,0.00019178,2]
[373407964,1752989442454,-618.52,0.00019178,2]
[373407966,1752989442463,-480.0,0.00019178,2]
[373407968,1752989442472,-796.25,0.00019178,2]
[373407970,1752989442481,-480.0,0.00019178,2]
[373407972,1752989442490,-500.0,0.00019178,2]
[373407974,1752989442499,-500.0,0.00019178,2]
[373407976,1752989442508,-500.0,0.00019178,2]
[373407978,1752989442517,-500.0,0.00019178,2]
[373407980,1752989442526,-500.0,0.00019178,2]
[373407982,1752989442535,-349.95207464,0.00019178,2]
[373407984,1752989442545,-500.0,0.00019178,2]
[373407986,1752989442554,-500.0,0.00019178,2]
[373407988,1752989442563,-170.24775874,0.00019178,2]
[373407990,1752989442572,-604.84,0.00019178,2]
[373407992,1752989442581,-480.0,0.00019178,2]
[373407994,1752989442591,-470.60105702,0.00019178,2]
[373407996,1752989442599,-581.68,0.00019178,2]
[373407998,1752989442608,-1231.45,0.00019178,2]
[373408000,1752989442618,-789.99,0.00019178,2]
[373408002,1752989442629,-480.0,0.00019178,2]
[373408004,1752989442638,-1780.72,0.00019178,2]
[373408006,1752989442647,-1111.42,0.00019178,2]
[373408008,1752989442658,-480.0,0.00019178,2]
[373408010,1752989442667,-705.48,0.00019178,2]
[373408012,1752989442676,-3284.08,0.00019178,2]
[373408014,1752989442686,-8037.86,0.00019178,2]
[373408016,1752989442695,-480.0,0.00019178,2]
[373408018,1752989442704,-480.0,0.00019178,2]
[373408020,1752989442714,-3107.59,0.00019178,2]
[373408022,1752989442723,-480.0,0.00019178,2]
[373408024,1752989442733,-480.0,0.00019178,2]
[373408026,1752989442742,-1037.79,0.00019178,2]
[373408028,1752989442751,-480.0,0.00019178,2]
[373408030,1752989442761,-1098.54,0.00019178,2]
[373408032,1752989442770,-599.29,0.00019178,2]
[373408033,1752989442779,-609.77,0.00019178,2]
[373408035,1752989442789,-480.0,0.00019178,2]
[373408038,1752989442797,-480.0,0.00019178,2]
[373408040,1752989442806,-673.73,0.00019178,2]
[373408042,1752989442815,-661.0,0.00019178,2]
[373408045,1752989442825,-480.0,0.00019178,2]
[373408047,1752989442838,-480.0,0.00019178,2]
[373408050,1752989442848,-822.08,0.00019178,2]
[373408052,1752989442857,-480.0,0.00019178,2]
[373408053,1752989442866,-638.51,0.00019178,2]
[373408055,1752989442877,-480.0,0.00019178,2]
[373408057,1752989442886,-480.0,0.00019178,2]
[373408059,1752989442895,-480.0,0.00019178,2]
[373408061,1752989442904,-780.52,0.00019178,2]
[373408063,1752989442913,-780.52,0.00019178,2]
[373408065,1752989442922,-480.0,0.00019178,2]
[373408067,1752989442931,-2821.88,0.00019178,2]
[373408069,1752989442941,-3713.37,0.00019178,2]
[373408071,1752989442951,-480.0,0.00019178,2]
[373408074,1752989442961,-480.0,0.00019178,2]
[373408075,1752989442970,-861.55,0.00019178,2]
[373408077,1752989442979,-1433.3,0.00019178,2]
[373408079,1752989442988,-480.0,0.00019178,2]
[373408081,1752989442997,-490.4,0.00019178,2]
[373408083,1752989443006,-970.96,0.00019178,2]
[373408085,1752989443019,-480.0,0.00019178,2]
[373408087,1752989443028,-480.0,0.00019178,2]
[373408089,1752989443037,-924.98,0.00019178,2]
[373408091,1752989443046,-1110.81,0.00019178,2]
[373408093,1752989443056,-480.0,0.00019178,2]
[373408095,1752989443065,-488.83,0.00019178,2]
[373408097,1752989443074,-480.0,0.00019178,2]
[373408100,1752989443084,-1143.92,0.00019178,2]
[373408101,1752989443095,-424.86804978,0.00019178,2]
[373408103,1752989443104,-1865.06,0.00019178,2]
[373408105,1752989443114,-1942.24,0.00019178,2]
[373408108,1752989443123,-480.0,0.00019178,2]
[373408109,1752989443134,-480.0,0.00019178,2]
[373408111,1752989443143,-500.0,0.00019178,2]
[373408113,1752989443153,-480.0,0.00019178,2]
[373408115,1752989443162,-480.0,0.00019178,2]
[373408117,1752989443171,-2661.07,0.00019178,2]
[373408120,1752989443180,-480.0,0.00019178,2]
[373408122,1752989443190,-1386.53,0.00019178,2]
[373408123,1752989443199,-480.0,0.00019178,2]
[373408126,1752989443208,-1282.06,0.00019178,2]
[373408127,1752989443217,-480.0,0.00019178,2]
[373408129,1752989443226,-568.51,0.00019178,2]
[373408132,1752989443239,-480.0,0.00019178,2]
[373408134,1752989443252,-550.81087349,0.00019178,2]
[373408137,1752989443266,-662.17,0.00019178,2]
[373408139,1752989443279,-480.0,0.00019178,2]
[373408141,1752989443289,-460.0,0.00019178,2]
[373408144,1752989443300,-607.57,0.00019178,2]
[373408147,1752989443312,-548.66,0.00019178,2]
[373408149,1752989443324,-1091.85,0.00019178,2]
[373408152,1752989443335,-480.0,0.00019178,2]
[373408154,1752989443348,-480.0,0.00019178,2]
[373408156,1752989443360,-480.0,0.00019178,2]
[373408159,1752989443373,-483.06,0.00019178,2]
[373408161,1752989443385,-480.0,0.00019178,2]
[373408163,1752989443397,-1464.86,0.00019178,2]
[373408165,1752989443407,-5718.46,0.00019178,2]
[373408167,1752989443417,-467.01586757,0.00019178,2]
[373408169,1752989443428,-480.0,0.00019178,2]
[373408172,1752989443440,-1782.42058,0.00019178,2]
[373408174,1752989443452,-480.0,0.00019178,2]
[373408176,1752989443464,-1012.96,0.00019178,2]
[373408179,1752989443476,-994.74,0.00019178,2]
[373408181,1752989443490,-480.0,0.00019178,2]
[373408183,1752989443503,-468.31797964,0.00019178,2]
[373408186,1752989443515,-786.49,0.00019178,2]
[373408188,1752989443527,-489.06,0.00019178,2]
[373408190,1752989443539,-635.8,0.00019178,2]
[373408193,1752989443552,-650.01,0.00019178,2]
[373408195,1752989443564,-480.0,0.00019178,2]
[373408197,1752989443576,-480.0,0.00019178,2]
[373408200,1752989443587,-480.0,0.00019178,2]
[373408202,1752989443599,-856.56,0.00019178,2]
[373408204,1752989443610,-1960.62,0.00019178,2]
[373408206,1752989443622,-480.0,0.00019178,2]
[373408209,1752989443636,-509.81516965,0.00019178,2]
[373408211,1752989443647,-480.0,0.00019178,2]
[373408213,1752989443659,-480.0,0.00019178,2]
[373408216,1752989443670,-480.0,0.00019178,2]
[373408218,1752989443681,-480.0,0.00019178,2]
[373408220,1752989443691,-568.77,0.00019178,2]
[373408222,1752989443701,-480.0,0.00019178,2]
[373408224,1752989443712,-480.0,0.00019178,2]
[373408227,1752989443725,-480.0,0.00019178,2]
[373408229,1752989443739,-500.0,0.00019178,2]
[373408231,1752989443749,-484.36,0.00019178,2]
[373408233,1752989443759,-480.0,0.00019178,2]
[373408234,1752989443769,-662.08,0.00019178,2]
[373408235,1752989443780,-3491.99,0.00019178,2]
[373408237,1752989443791,-2617.19,0.00019178,2]
[373408239,1752989443803,-163.06168,0.00019178,2]
[373408242,1752989443815,-838.32,0.00019178,2]
[373408244,1752989443825,-480.0,0.00019178,2]
[373408246,1752989443836,-501.24171886,0.00019178,2]
[373408248,1752989443847,-562.74,0.00019178,2]
[373408250,1752989443857,-480.0,0.00019178,2]
[373408253,1752989443868,-631.6,0.00019178,2]
[373408255,1752989443879,-480.0,0.00019178,2]
[373408257,1752989443890,-480.0,0.00019178,2]
[373408259,1752989443901,-168.95,0.00019178,2]
[373408261,1752989443911,-1016.15,0.00019178,2]
[373408264,1752989443923,-480.0,0.00019178,2]
[373408266,1752989443935,-21544.09,0.00019178,2]
[373408268,1752989443946,-600.54,0.00019178,2]
[373408270,1752989443957,-526.14,0.00019178,2]
[373408272,1752989443968,-1521.27,0.00019178,2]
[373408275,1752989443978,-1131.76,0.00019178,2]
[373408277,1752989443989,-1636.42,0.00019178,2]
[373408279,1752989444000,-480.0,0.00019178,2]
[373408281,1752989444012,-151.0,0.00019178,2]
[373408284,1752989444023,-255.58,0.00019178,2]
[373408286,1752989444039,-25677.68,0.00019178,2]
[373408288,1752989444051,-30207.54476828,0.00019178,2]
[373408290,1752989444062,-154.83245859,0.00019187,2]
[373408293,1752989444077,-200.0,0.00019187,2]
[373408295,1752989444087,-1851.0135884,0.000192,2]
[373408297,1752989444098,-450.82588241,0.000192,2]
[373408299,1752989444109,-1112.0,0.000192,2]
[373408302,1752989444120,-596.1,0.00019206,2]
[373408304,1752989444132,-168.0,0.00019212,2]
[373408306,1752989444142,-168.0,0.00019219,2]
[373408308,1752989444154,-1680.0,0.00019219,2]
[373408310,1752989444165,-160.0,0.00019222,2]
[373408312,1752989444175,-476.8747822,0.00019222,2]
[373408315,1752989444186,-839.31074571,0.00019222,2]
[373408317,1752989444197,-210.86573235,0.00019222,2]
[373408319,1752989444209,-259.8365768,0.00019245,2]
[373408321,1752989444219,-160.08257835,0.00019253,2]
[373408324,1752989444230,-513.40344777,0.00019273,2]
[373408326,1752989444241,-568.51,0.00019285,2]
[373408328,1752989444252,-403.213,0.00019286,2]
[373408330,1752989444263,-500.0,0.00019286,2]
[373408332,1752989444273,-500.0,0.00019286,2]
[373408335,1752989444283,-782.2,0.00019286,2]
[373408337,1752989444294,-300.0,0.00019286,2]
[373408339,1752989444305,-780.52,0.00019286,2]
[373408341,1752989444315,-500.0,0.00019286,2]
[373408343,1752989444327,-568.51,0.00019286,2]
[373408346,1752989444338,-151.0,0.00019287,2]
[373408348,1752989444349,-480.0,0.00019287,2]
[373408350,1752989444360,-480.0,0.00019287,2]
[373408352,1752989444371,-841.61,0.00019287,2]
[373408355,1752989444384,-480.0,0.00019287,2]
[373408357,1752989444394,-480.0,0.00019287,2]
[373408359,1752989444405,-480.0,0.00019287,2]
[373408361,1752989444416,-480.0,0.00019287,2]
[373408363,1752989444427,-480.0,0.00019287,2]
[373408366,1752989444438,-480.0,0.00019287,2]
[373408368,1752989444448,-480.0,0.00019287,2]
[373408370,1752989444459,-480.0,0.00019287,2]
[373408372,1752989444470,-480.0,0.00019287,2]
[373408374,1752989444481,-308.60746448,0.00019287,2]
[373408377,1752989444492,-480.0,0.00019287,2]
[373408379,1752989444503,-1309.4,0.00019287,2]
[373408381,1752989444514,-480.0,0.00019287,2]
[373408383,1752989444525,-480.0,0.00019287,2]
[373408385,1752989444535,-2661.09,0.00019287,2]
[373408388,1752989444546,-604.79,0.00019287,2]
[373408390,1752989444557,-480.0,0.00019287,2]
[373408392,1752989444568,-480.0,0.00019287,2]
[373408394,1752989444579,-480.0,0.00019287,2]
[373408396,1752989444591,-480.0,0.00019287,2]
[373408399,1752989444601,-480.0,0.00019287,2]
[373408401,1752989444612,-480.0,0.00019287,2]
[373408403,1752989444624,-682.77,0.00019287,2]
[373408405,1752989444636,-610.34,0.00019287,2]
[373408408,1752989444647,-540.39,0.00019287,2]
[373408410,1752989444658,-480.0,0.00019287,2]
[373408412,1752989444669,-480.0,0.00019287,2]
[373408414,1752989444680,-480.0,0.00019287,2]
[373408417,1752989444691,-480.0,0.00019287,2]
[373408419,1752989444702,-480.0,0.00019287,2]
[373408421,1752989444713,-480.0,0.00019287,2]
[373408423,1752989444724,-480.0,0.00019287,2]
[373408425,1752989444735,-611.86,0.00019287,2]
[373408428,1752989444746,-480.0,0.00019287,2]
[373408430,1752989444757,-847.28,0.00019287,2]
[373408432,1752989444768,-811.98,0.00019287,2]
[373408434,1752989444778,-480.0,0.00019287,2]
[373408436,1752989444789,-480.0,0.00019287,2]
[373408438,1752989444800,-480.0,0.00019287,2]
[373408441,1752989444814,-480.0,0.00019287,2]
[373408443,1752989444825,-480.0,0.00019287,2]
[373408445,1752989444836,-572.32,0.00019287,2]
[373408447,1752989444847,-480.0,0.00019287,2]
[373408449,1752989444858,-480.0,0.00019287,2]
[373408452,1752989444870,-480.0,0.00019287,2]
[373408454,1752989444883,-480.0,0.00019287,2]
[373408456,1752989444894,-480.0,0.00019287,2]
[373408458,1752989444905,-480.0,0.00019287,2]
[373408460,1752989444916,-480.0,0.00019287,2]
[373408463,1752989444926,-480.0,0.00019287,2]
[373408465,1752989444937,-480.0,0.00019287,2]
[373408467,1752989444948,-480.0,0.00019287,2]
[373408469,1752989444963,-675.62,0.00019287,2]
[373408471,1752989444973,-480.0,0.00019287,2]
[373408473,1752989444984,-480.0,0.00019287,2]
[373408475,1752989444995,-480.0,0.00019287,2]
[373408478,1752989445006,-151.0,0.00019287,2]
[373408480,1752989445023,-480.0,0.00019287,2]
[373408482,1752989445035,-480.0,0.00019287,2]
[373408484,1752989445046,-480.0,0.00019287,2]
[373408486,1752989445058,-480.0,0.00019287,2]
[373408488,1752989445069,-480.0,0.00019287,2]
[373408491,1752989445080,-151.0,0.00019287,2]
[373408493,1752989445091,-151.0,0.00019287,2]
[373408495,1752989445102,-480.0,0.00019287,2]
[373408497,1752989445113,-500.0,0.00019287,2]
[373408499,1752989445124,-480.0,0.00019287,2]
[373408501,1752989445136,-480.0,0.00019287,2]
[373408504,1752989445147,-480.0,0.00019287,2]
[373408506,1752989445157,-753.07,0.00019287,2]
[373408508,1752989445168,-480.0,0.00019287,2]
[373408510,1752989445179,-480.0,0.00019287,2]
[373408512,1752989445189,-619.31,0.00019287,2]
[373408514,1752989445200,-1339.47,0.00019287,2]
[373408516,1752989445211,-480.0,0.00019287,2]
[373408519,1752989445221,-1158.17,0.00019287,2]
[373408521,1752989445232,-480.0,0.00019287,2]
[373408523,1752989445243,-480.0,0.00019287,2]
[373408525,1752989445254,-480.0,0.00019287,2]
[373408527,1752989445264,-151.0,0.00019287,2]
[373408529,1752989445275,-151.0,0.00019287,2]
[373408531,1752989445287,-480.0,0.00019287,2]
[373408533,1752989445297,-480.0,0.00019287,2]
[373408536,1752989445308,-480.0,0.00019287,2]
[373408538,1752989445319,-480.0,0.00019287,2]
[373408540,1752989445331,-835.59,0.00019287,2]
[373408542,1752989445342,-593.59,0.00019287,2]
[373408544,1752989445353,-480.0,0.00019287,2]
[373408546,1752989445364,-434.49766791,0.00019287,2]
[373408549,1752989445378,-480.0,0.00019287,2]
[373408551,1752989445388,-516.69,0.00019287,2]
[373408553,1752989445398,-480.0,0.00019287,2]
[373408555,1752989445409,-151.0,0.00019287,2]
[373408557,1752989445419,-151.0,0.00019287,2]
[373408559,1752989445430,-480.0,0.00019287,2]
[373408562,1752989445440,-480.0,0.00019287,2]
[373408564,1752989445451,-151.0,0.00019287,2]
[373408566,1752989445461,-480.0,0.00019287,2]
[373408568,1752989445472,-480.0,0.00019287,2]
[373408570,1752989445483,-480.0,0.00019287,2]
[373408572,1752989445494,-480.0,0.00019287,2]
[373408574,1752989445505,-480.0,0.00019287,2]
[373408576,1752989445515,-480.0,0.00019287,2]
[373408579,1752989445526,-848.23,0.00019287,2]
[373408581,1752989445536,-480.0,0.00019287,2]
[373408583,1752989445546,-480.0,0.00019287,2]
[373408585,1752989445557,-480.0,0.00019287,2]
[373408587,1752989445568,-480.0,0.00019287,2]
[373408589,1752989445579,-480.0,0.00019287,2]
[373408591,1752989445589,-480.0,0.00019287,2]
[373408593,1752989445600,-571.92,0.00019287,2]
[373408595,1752989445610,-480.0,0.00019287,2]
[373408598,1752989445621,-480.0,0.00019287,2]
[373408600,1752989445632,-528.82,0.00019287,2]
[373408602,1752989445643,-480.0,0.00019287,2]
[373408604,1752989445653,-480.0,0.00019287,2]
[373408606,1752989445664,-480.0,0.00019287,2]
[373408608,1752989445675,-163.94585953,0.00019287,2]
[373408610,1752989445686,-480.0,0.00019287,2]
[373408613,1752989445696,-480.0,0.00019287,2]
[373408615,1752989445707,-520.0,0.00019287,2]
[373408617,1752989445717,-480.0,0.00019287,2]
[373408620,1752989445727,-480.0,0.00019287,2]
[373408622,1752989445738,-480.0,0.00019287,2]
[373408624,1752989445748,-480.0,0.00019287,2]
[373408626,1752989445759,-151.0,0.00019287,2]
[373408628,1752989445769,-480.0,0.00019287,2]
[373408631,1752989445780,-151.54512,0.00019287,2]
[373408633,1752989445790,-781.89,0.00019287,2]
[373408635,1752989445801,-480.0,0.00019287,2]
[373408637,1752989445812,-680.69,0.00019287,2]
[373408639,1752989445824,-480.0,0.00019287,2]
[373408641,1752989445834,-480.0,0.00019287,2]
[373408643,1752989445845,-565.07,0.00019287,2]
[373408646,1752989445855,-693.28,0.00019287,2]
[373408648,1752989445866,-548.871019,0.00019287,2]
[373408650,1752989445878,-439.69489889,0.00019287,2]
[373408652,1752989445890,-480.0,0.00019287,2]
[373408654,1752989445901,-480.0,0.00019287,2]
[373408656,1752989445912,-520.0,0.00019287,2]
[373408658,1752989445922,-480.0,0.00019287,2]
[373408660,1752989445933,-482.17,0.00019287,2]